bitfinex/quotes_ETHUSD_20241104
["timestamp","ask_amount","ask_price","bid_price","bid_amount"]
[1730747320884,5.19653176,2435.9,2435.8,0.14955898]
[1730747321091,5.19653176,2435.9,2435.5,4.58865696]
[1730747321293,5.19653176,2435.9,2435.6,0.14938308]
[1730747321294,4.27930796,2435.9,2435.6,0.14938308]
[1730747321529,4.27930796,2435.9,2435.7,0.14938308]
[1730747321730,4.27930796,2435.9,2435.5,8.45553027]
[1730747322033,8.38466796,2435.9,2435.6,0.14938183]
[1730747322239,4.27930796,2435.9,2435.7,0.14938183]
[1730747322400,4.27930796,2435.9,2435.5,4.34961027]
[1730747322600,4.27930796,2435.9,2435.6,0.14941795]
[1730747322789,4.27930796,2435.9,2435.7,0.14941795]
[1730747322984,4.27930796,2435.9,2435.5,4.58870748]
[1730747323290,4.27930796,2435.9,2435.6,0.14941674]
[1730747323485,4.27930796,2435.9,2435.7,0.14941674]
[1730747323825,4.27930796,2435.9,2435.5,4.58871564]
[1730747324034,4.27930796,2435.9,2435.6,0.14942313]
[1730747324331,4.27930796,2435.9,2435.7,0.14942313]
[1730747324332,4.10544,2435.8,2435.7,0.14942313]
[1730747324691,4.21913652,2435.8,2435.7,0.14942313]
[1730747326027,4.21913652,2435.8,2435.7,0.14986158]
[1730747327491,4.1056,2435.7,2435.4,0.23980665]
[1730747327686,4.1056,2435.7,2435.5,0.14986967]
[1730747327892,4.10544,2435.8,2435.6,0.14986967]
[1730747328090,5.10306246,2435.8,2435.4,0.23980665]
[1730747328327,4.10563,2435.7,2435.5,0.14987855]
[1730747328537,4.10563,2435.7,2435.6,0.14987855]
[1730747328736,4.1058,2435.6,2435.4,0.23980665]
[1730747329040,4.86463,2435.7,2435.2,0.23980665]
[1730747329041,4.10621,2435.4,2435.2,0.23980665]
[1730747329237,4.10663,2435.1,2435.0,0.23982661]
[1730747329542,4.10647,2435.2,2435.0,0.14987372]
[1730747329703,4.10647,2435.2,2435.1,0.14987372]
[1730747330220,4.88738,2435.3,2435.1,0.14987097]
[1730747330416,4.10628,2435.3,2434.9,7.91903194]
[1730747330729,4.10628,2435.3,2435.0,0.95905436]
[1730747330948,4.10612,2435.4,2435.1,0.14985436]
[1730747331250,4.10609,2435.5,2435.2,3.72216463]
[1730747331417,4.10609,2435.5,2435.3,0.14985436]
[1730747331618,4.10609,2435.5,2435.2,3.57231027]
[1730747331805,8.21211,2435.5,2435.3,0.14987182]
[1730747332045,0.11342369,2435.4,2435.2,3.57231027]
[1730747332252,0.11342369,2435.4,2435.3,0.1498879]
[1730747332413,0.11342369,2435.4,2435.3,0.14989047]
[1730747332414,4.21959369,2435.4,2435.3,0.14989047]
[1730747332615,4.21959369,2435.4,2435.3,0.14988696]
[1730747333141,4.21959369,2435.4,2435.0,4.91586]
[1730747333450,4.21959369,2435.4,2435.3,0.14988819]
[1730747333657,0.11342369,2435.4,2435.2,3.57231027]
[1730747334750,4.21952369,2435.4,2435.0,4.91586]
[1730747334966,4.21952369,2435.4,2435.1,0.14987782]
[1730747335117,4.21952369,2435.4,2435.0,5.15569263]
[1730747335118,4.21952369,2435.4,2435.2,0.14987782]
[1730747335322,4.21952369,2435.4,2435.0,5.15569263]
[1730747335517,4.21952369,2435.4,2435.1,0.14986414]
[1730747335829,0.11342369,2435.4,2435.2,0.14986414]
[1730747336033,4.21953369,2435.4,2435.0,4.91595]
[1730747336230,4.21953369,2435.4,2435.1,0.14986765]
[1730747336436,4.21953369,2435.4,2435.2,0.14986765]
[1730747336630,4.21953369,2435.4,2435.0,5.15567899]
[1730747336822,4.21953369,2435.4,2435.0,4.91589]
[1730747337020,8.32578369,2435.4,2435.1,0.14986037]
[1730747337359,4.21953369,2435.4,2435.2,0.14984543]
[1730747337541,4.10634,2435.3,2434.9,7.91902497]
[1730747337744,4.21953369,2435.4,2435.0,4.25658804]
[1730747337949,0.11339693,2435.2,2435.1,0.14983804]
[1730747338138,4.10611,2435.4,2435.1,0.14983804]
[1730747338318,4.10611,2435.4,2434.9,7.67922027]
[1730747338319,0.11342369,2435.2,2434.9,7.67922027]
[1730747338665,4.10627,2435.3,2435.0,0.14984464]
[1730747338833,0.11342369,2435.1,2434.9,7.67913027]
[1730747339163,0.7956,2435.2,2435.0,0.14983509]
[1730747339363,0.7956,2435.2,2434.9,7.67913027]
[1730747339535,0.7956,2435.2,2435.0,0.14980812]
[1730747339735,0.7956,2435.2,2435.1,0.14980812]
[1730747339942,0.7956,2435.2,2435.0,0.14980426]
[1730747340149,4.90203,2435.2,2435.1,0.14980426]
[1730747340470,4.90203,2435.2,2435.0,0.14980426]
[1730747340651,4.90203,2435.2,2434.8,0.8076]
[1730747340811,4.90203,2435.2,2434.9,0.1497905]
[1730747341003,4.90203,2435.2,2434.8,0.8076]
[1730747341004,4.10661,2435.1,2435.0,0.1497905]
[1730747341209,4.10626,2435.4,2434.9,4.2566005]
[1730747341444,4.10626,2435.4,2435.0,0.1497905]
[1730747341445,4.10623,2435.4,2435.0,0.1497905]
[1730747341737,4.10632,2435.3,2434.9,7.67912027]
[1730747341936,4.10632,2435.3,2435.0,0.14975263]
[1730747342097,4.10649,2435.2,2435.0,0.14974967]
[1730747342297,4.10649,2435.2,2434.9,3.57231027]
[1730747342492,4.10649,2435.2,2434.8,4.91468]
[1730747342748,4.10649,2435.2,2434.9,0.14973991]
[1730747342962,8.21309,2435.2,2434.8,4.91468]
[1730747343116,4.10664,2435.1,2434.9,0.14974509]
[1730747343335,4.10664,2435.1,2434.8,0.14974509]
[1730747343336,4.10677,2435.0,2434.8,0.14974509]
[1730747343589,4.87071,2434.8,2434.7,0.14974509]
[1730747343867,4.87071,2434.8,2434.0,5.17455274]
[1730747343868,4.10778,2434.4,2434.0,5.17455274]
[1730747344025,4.10778,2434.4,2434.1,0.14974148]
[1730747344362,4.10778,2434.4,2434.0,5.17455274]
[1730747344363,4.10778,2434.4,2434.2,0.14974148]
[1730747344521,4.10778,2434.4,2434.1,0.14974148]
[1730747344720,4.10778,2434.4,2434.2,0.14974148]
[1730747344962,4.10778,2434.4,2434.1,3.14974148]
[1730747345117,8.21568,2434.4,2434.2,0.14974148]
[1730747345461,0.7909,2434.3,2434.0,4.10836]
[1730747345658,0.7909,2434.3,2434.1,3.14959319]
[1730747345955,0.7909,2434.3,2434.0,0.23938024]
[1730747346126,4.89898,2434.3,2434.0,0.14959154]
[1730747347016,0.11316947,2434.2,2434.0,0.14959154]
[1730747347217,0.11316947,2434.2,2434.0,0.14948729]
[1730747347448,9.00706,2434.3,2434.0,0.14948442]
[1730747347653,0.11316947,2434.1,2433.9,0.14948442]
[1730747347858,4.10816,2434.2,2433.9,0.14948442]
[1730747348025,0.11301418,2434.0,2433.9,0.14948442]
[1730747348361,0.11301418,2434.0,2433.9,0.14942953]
[1730747348557,4.10816,2434.2,2433.9,0.14943079]
[1730747348763,0.11301418,2434.0,2433.9,4.25795128]
[1730747348922,0.7909,2434.3,2433.9,4.25795128]
[1730747349121,0.11301418,2434.0,2433.8,4.10868]
[1730747349322,4.89896,2434.3,2433.8,8.21739]
[1730747349650,0.11301418,2434.2,2433.8,8.21739]
[1730747349863,0.11301418,2434.2,2433.8,8.21738]
[1730747350013,4.89888,2434.3,2433.8,8.21738]
[1730747350241,0.11301418,2434.1,2434.0,9.01717027]
[1730747350445,0.11301418,2434.1,2434.0,12.16652364]
[1730747350740,4.8832,2434.8,2434.3,4.10779]
[1730747351176,0.11301418,2434.7,2434.3,4.10779]
[1730747351771,0.11301418,2434.6,2434.2,4.1081]
[1730747351939,4.22047418,2434.6,2434.2,4.1081]
[1730747352459,0.11301418,2434.6,2434.2,4.1081]
[1730747352785,4.1073,2434.7,2434.3,4.10791]
[1730747352987,0.11301418,2434.5,2434.3,4.10791]
[1730747353186,4.1073,2434.7,2434.3,4.10791]
[1730747353399,4.10661,2435.1,2434.3,5.44991]
[1730747353400,0.11275718,2434.4,2434.3,5.44991]
[1730747353573,4.92776,2435.3,2434.7,4.10712]
[1730747353897,4.92776,2435.3,2434.8,4.89903]
[1730747354075,0.11275718,2435.2,2434.8,4.89903]
[1730747354278,4.92776,2435.3,2434.8,4.89903]
[1730747354605,4.21945303,2435.2,2434.8,0.792]
[1730747354910,4.21945303,2435.2,2434.6,4.10742]
[1730747354911,4.10684,2435.0,2434.6,4.10742]
[1730747355110,4.10684,2435.0,2434.7,3.0]
[1730747355419,0.11288303,2434.9,2434.7,3.0]
[1730747355720,0.11288303,2434.9,2434.7,7.10718]
[1730747356227,4.10661,2435.1,2434.7,7.10718]
[1730747356228,0.11292051,2434.8,2434.7,7.10718]
[1730747356522,0.11292051,2434.8,2434.7,3.0]
[1730747356711,4.10661,2435.1,2434.7,7.10717]
[1730747357219,0.11292051,2435.0,2434.7,7.10717]
[1730747357998,0.11292051,2435.0,2434.3,4.38111027]
[1730747357999,4.10706,2434.9,2434.3,4.38111027]
[1730747358213,4.10706,2434.9,2434.4,8.36490699]
[1730747358410,0.11294192,2434.8,2434.5,0.14958699]
[1730747358831,0.11294192,2434.8,2434.5,4.25711699]
[1730747359093,0.11294192,2434.8,2434.6,7.67964027]
[1730747359313,4.10662,2435.1,2434.6,11.78697027]
[1730747359500,0.11293121,2435.0,2434.7,0.14963795]
[1730747359909,0.11293121,2435.0,2434.7,4.25689795]
[1730747360225,0.11293121,2435.0,2434.7,4.10726]
[1730747361191,0.11293121,2435.0,2434.6,4.10742]
[1730747361192,4.21977121,2435.0,2434.6,4.10742]
[1730747361525,5.13415133,2435.0,2434.6,4.10742]
[1730747361728,4.21977121,2435.0,2434.6,4.10742]
[1730747362395,4.10696,2434.9,2434.5,4.10749]
[1730747362601,4.10696,2434.9,2434.6,0.14970211]
[1730747362908,0.11293121,2434.8,2434.5,4.10749]
[1730747363111,4.10735,2434.7,2434.4,3.0]
[1730747363434,4.10735,2434.7,2434.3,8.48906027]
[1730747363742,0.11304101,2434.6,2434.4,0.14973655]
[1730747364034,0.11304101,2434.6,2434.4,0.14973823]
[1730747364035,4.22051101,2434.6,2434.4,0.14973823]
[1730747364607,4.10761,2434.5,2434.4,0.14973823]
[1730747364788,4.22051101,2434.6,2434.4,0.14976724]
[1730747365016,4.10747,2434.6,2434.3,0.14976724]
[1730747365200,0.11304101,2434.5,2434.2,7.34775568]
[1730747365401,0.11304101,2434.5,2434.3,0.14979185]
[1730747365600,0.11304101,2434.5,2434.2,7.34775568]
[1730747365805,0.11304101,2434.5,2434.3,0.15078266]
[1730747366116,0.11304101,2434.5,2434.2,7.34938361]
[1730747366324,0.11304101,2434.5,2434.3,0.15080023]
[1730747366616,0.11304101,2434.5,2434.3,4.10795]
[1730747366977,4.10729,2434.7,2434.4,0.15079595]
[1730747367183,4.10729,2434.7,2434.3,4.10795]
[1730747367378,4.10729,2434.7,2434.4,0.15082355]
[1730747367720,4.10729,2434.7,2434.3,4.10795]
[1730747367932,4.10729,2434.7,2434.4,0.15082653]
[1730747368224,4.10729,2434.7,2434.5,0.15085179]
[1730747368373,4.10729,2434.7,2434.3,4.34930524]
[1730747368725,4.10729,2434.7,2434.4,0.15085348]
[1730747368897,4.10729,2434.7,2434.5,0.15085348]
[1730747369074,4.10729,2434.7,2434.3,4.34930524]
[1730747369419,4.10729,2434.7,2434.4,0.15086056]
[1730747369582,4.10729,2434.7,2434.5,0.15086056]
[1730747369785,4.10729,2434.7,2434.3,4.34930524]
[1730747369979,4.10729,2434.7,2434.4,0.15087549]
[1730747370178,4.10729,2434.7,2434.5,0.15087549]
[1730747370416,4.10729,2434.7,2434.3,4.34930524]
[1730747370711,4.10729,2434.7,2434.4,0.150887]
[1730747370920,4.10729,2434.7,2434.5,0.150887]
[1730747371216,4.10746,2434.6,2434.3,0.24135524]
[1730747371377,4.10746,2434.6,2434.4,0.1508953]
[1730747371580,4.10746,2434.6,2434.5,0.1508953]
[1730747371778,4.10729,2434.7,2434.5,0.1508953]
[1730747372024,4.10729,2434.7,2434.3,4.34928524]
[1730747372224,4.10729,2434.7,2434.4,0.15093854]
[1730747372383,4.10729,2434.7,2434.5,0.15093854]
[1730747372585,4.10729,2434.7,2434.3,4.34928524]
[1730747372920,8.21469,2434.7,2434.4,0.15093878]
[1730747373121,0.8325,2435.1,2434.5,0.15093878]
[1730747373281,4.10702,2434.9,2434.5,4.1076]
[1730747373483,4.10712,2434.8,2434.4,4.92946]
[1730747373823,4.10712,2434.8,2434.5,0.15096404]
[1730747374031,4.10712,2434.8,2434.4,4.92946]
[1730747374210,4.10712,2434.8,2434.5,0.15096777]
[1730747374526,4.928534,2434.8,2434.4,4.92946]
[1730747374682,4.928534,2434.8,2434.5,0.15096714]
[1730747375046,4.10856,2434.0,2433.5,4.96983199]
[1730747375184,1.223456,2433.9,2433.6,0.39241966]
[1730747375380,4.92055,2434.3,2433.7,5.03556986]
[1730747375628,4.10819,2434.2,2433.8,0.15091986]
[1730747375924,4.10819,2434.2,2433.7,4.88465]
[1730747376124,4.92055,2434.3,2433.8,0.1509341]
[1730747376278,4.92055,2434.3,2433.9,4.10862]
[1730747376482,4.92055,2434.3,2433.8,4.10877]
[1730747376983,0.11304101,2434.2,2433.9,0.15089596]
[1730747377128,9.02866,2434.3,2433.8,4.10877]
[1730747377464,0.11304101,2434.2,2433.8,4.10877]
[1730747377830,9.02861,2434.3,2433.8,4.10877]
[1730747378020,0.11304101,2434.1,2433.7,4.88465]
[1730747378268,3.86694004,2434.8,2434.6,3.7593]
[1730747378469,0.64333803,2435.0,2434.7,0.15078061]
[1730747378764,1.72059329,2435.6,2435.0,4.10667]
[1730747378765,4.10579,2435.6,2435.0,4.10667]
[1730747378963,4.9271,2435.5,2435.0,4.10667]
[1730747379166,4.10613,2435.4,2434.9,4.10689]
[1730747379331,4.9271,2435.5,2435.0,4.10676]
[1730747380065,0.798,2435.6,2435.0,4.10669]
[1730747380268,0.798,2435.6,2435.1,0.15072793]
[1730747380423,0.798,2435.6,2435.1,4.25724793]
[1730747380757,0.798,2435.6,2435.2,4.2571443]
[1730747380963,4.10562,2435.7,2435.2,4.10643]
[1730747381169,4.10562,2435.7,2435.2,4.10636]
[1730747381662,4.10562,2435.7,2435.2,7.67867027]
[1730747381970,4.89215,2435.8,2435.3,4.10617]
[1730747383323,4.1659388,2435.9,2435.4,4.10602]
[1730747383529,4.10545,2435.8,2435.4,4.10602]
[1730747383763,8.2713188,2435.9,2435.4,4.10602]
[1730747384351,4.10543,2435.8,2435.4,4.10602]
[1730747384769,4.10543,2435.8,2435.2,7.67858027]
[1730747384977,4.10543,2435.8,2435.3,4.10615]
[1730747385769,4.10543,2435.8,2435.2,7.67858027]
[1730747385944,4.1659388,2435.9,2435.4,8.21206]
[1730747386138,4.1659388,2435.9,2435.5,0.7841]
[1730747386338,4.1659388,2435.9,2435.5,8.46227027]
[1730747386543,4.1659388,2435.9,2435.5,4.35641027]
[1730747386952,4.1659388,2435.9,2435.5,0.7841]
[1730747387157,4.1659388,2435.9,2435.5,4.89003]
[1730747387451,4.1659388,2435.9,2435.5,0.7841]
[1730747389368,0.0605888,2435.9,2435.6,7.67807027]
[1730747389544,0.0605888,2435.9,2435.7,4.1055]
[1730747389741,0.1134451,2435.8,2435.7,4.1055]
[1730747390480,0.0605888,2435.9,2435.8,4.10542]
[1730747390778,0.1740339,2435.9,2435.8,4.10542]
[1730747392674,0.0605888,2435.9,2435.8,4.10542]
[1730747393009,0.1740339,2435.9,2435.8,4.10542]
[1730747393505,0.0605888,2435.9,2435.7,7.65557]
[1730747393713,0.0605888,2435.9,2435.7,11.76105]
[1730747394010,0.0605888,2435.9,2435.7,7.65548]
[1730747394011,0.1134451,2435.8,2435.7,7.65548]
[1730747395011,0.1134451,2435.8,2435.7,7.73758343]
[1730747397788,0.1134451,2435.8,2435.7,7.65548]
[1730747399410,0.1134451,2435.8,2435.7,7.73758349]
[1730747399611,0.0605888,2435.9,2435.8,4.10542]
[1730747400300,0.0605888,2435.9,2435.7,7.65548]
[1730747400502,0.0605888,2435.9,2435.8,4.10542]
[1730747400832,0.0605888,2435.9,2435.7,3.0]
[1730747401232,0.8246888,2435.9,2435.6,7.10574]
[1730747401421,0.0605888,2435.9,2435.6,7.10574]
[1730747401744,0.0605888,2435.9,2435.7,4.10558]
[1730747402047,0.0605888,2435.9,2435.6,11.2114]
[1730747402454,0.0605888,2435.9,2435.6,11.21133]
[1730747402652,0.0605888,2435.9,2435.6,7.10566]
[1730747403380,4.1658488,2435.9,2435.5,7.67823027]
[1730747403553,4.1658488,2435.9,2435.5,4.10592]
[1730747403712,4.1658488,2435.9,2435.3,0.8072]
[1730747403713,0.8125,2435.7,2435.3,0.8072]
[1730747403904,4.91823,2435.7,2435.3,4.10624]
[1730747404334,4.91823,2435.7,2435.2,3.57231027]
[1730747404514,4.91823,2435.7,2435.2,7.67871027]
[1730747404515,4.10581,2435.6,2435.2,7.67871027]
[1730747405429,4.91813,2435.7,2435.3,3.0]
[1730747405726,4.91813,2435.7,2435.3,7.10626]
[1730747405889,4.10598,2435.5,2435.3,3.0]
[1730747406618,4.91812,2435.7,2435.2,7.67873027]
[1730747406858,4.91812,2435.7,2435.3,4.10619]
[1730747407071,0.11350393,2435.6,2435.3,4.10619]
[1730747407362,0.11350393,2435.6,2435.4,4.10608]
[1730747407752,0.11350393,2435.6,2435.3,4.10619]
[1730747407982,0.11350393,2435.6,2435.2,3.57231027]
[1730747407983,0.11350393,2435.6,2435.5,7.67824027]
[1730747408181,0.11350393,2435.6,2435.5,11.37900265]
[1730747408347,0.0605888,2435.9,2435.8,4.10542]
[1730747408674,0.0605888,2435.9,2435.8,7.82846683]
[1730747408675,0.17017196,2435.9,2435.8,7.82846683]
[1730747409170,0.17017196,2435.9,2435.8,8.64496683]
[1730747409582,0.0605888,2435.9,2435.8,8.64496683]
[1730747410172,0.17017196,2435.9,2435.8,8.64496683]
[1730747410786,0.17017196,2435.9,2435.8,9.19496683]
[1730747410950,0.17017196,2435.9,2435.8,12.19496683]
[1730747411352,0.0605888,2435.9,2435.8,12.19496683]
[1730747413390,0.0605888,2435.9,2435.8,12.20496683]
[1730747414049,0.0605888,2435.9,2435.8,12.20484532]
[1730747414308,4.10347,2437.0,2435.9,3.55]
[1730747414309,0.7956,2437.0,2435.9,3.55]
[1730747414614,0.7956,2437.0,2436.6,4.104]
[1730747414916,0.7956,2437.0,2436.4,10.67664027]
[1730747415124,4.10403,2436.7,2436.5,0.15053691]
[1730747415278,4.10428,2436.5,2436.1,7.10489]
[1730747415492,4.10428,2436.5,2436.2,0.15050591]
[1730747415672,4.10428,2436.5,2436.3,0.15050591]
[1730747415877,4.10434,2436.5,2436.1,7.10485]
[1730747416204,4.10443,2436.4,2436.2,0.15052487]
[1730747416423,4.10443,2436.4,2436.1,3.0]
[1730747416719,4.10461,2436.3,2436.1,3.0]
[1730747416921,0.896811,2436.5,2436.0,3.57231027]
[1730747417091,0.7597,2436.6,2436.0,7.67740027]
[1730747417092,4.10443,2436.4,2436.0,7.67740027]
[1730747417307,4.10443,2436.4,2436.1,0.1505527]
[1730747417508,4.10443,2436.4,2436.0,7.67740027]
[1730747418048,4.10443,2436.4,2436.1,0.15058271]
[1730747418191,8.20898,2436.4,2436.0,3.57231027]
[1730747418387,0.8211,2436.2,2435.8,7.65541]
[1730747418622,0.8211,2436.2,2435.9,3.15059933]
[1730747418800,0.8211,2436.2,2436.0,0.15059933]
[1730747418988,0.8211,2436.2,2436.0,4.10507]
[1730747419196,4.1042,2436.6,2436.1,4.25549607]
[1730747419197,0.8211,2436.4,2436.1,4.25549607]
[1730747419396,4.92552,2436.4,2436.0,7.67737027]
[1730747419705,4.92552,2436.4,2436.1,0.15058588]
[1730747420518,4.92558,2436.4,2436.1,0.15058904]
[1730747420686,4.92558,2436.4,2436.0,3.57231027]
[1730747420687,4.10467,2436.3,2436.0,3.57231027]
[1730747420888,4.10484,2436.2,2435.8,7.10541]
[1730747421105,1.724075,2436.4,2435.9,0.15058281]
[1730747421106,4.10467,2436.3,2435.9,0.15058281]
[1730747421421,4.10467,2436.3,2436.0,0.30118806]
[1730747421575,5.828555,2436.4,2436.0,4.25567142]
[1730747421826,4.10469,2436.3,2436.1,0.15058203]
[1730747422029,4.21471436,2436.3,2436.0,0.15059142]
[1730747422230,4.21471436,2436.3,2436.1,0.15056328]
[1730747422430,4.21471436,2436.3,2436.0,0.15059142]
[1730747422739,4.10478,2436.2,2436.0,0.15059142]
[1730747423322,0.11002436,2436.1,2436.0,0.15059142]
[1730747423728,8.20934,2436.3,2436.0,0.30119446]
[1730747423953,0.11002436,2436.1,2436.0,0.15059142]
[1730747424170,9.2026815,2436.3,2436.0,0.15059271]
[1730747424365,0.11002436,2436.1,2435.8,3.0]
[1730747424564,0.7661,2436.0,2435.7,7.67787027]
[1730747424864,0.7661,2436.0,2435.8,0.15061147]
[1730747424865,4.98124436,2436.0,2435.8,0.15061147]
[1730747425065,4.98124436,2436.0,2435.7,3.57231027]
[1730747425066,0.87612436,2436.0,2435.7,3.57231027]
[1730747425283,0.87612436,2436.0,2435.8,0.15067316]
[1730747425435,0.87612436,2436.0,2435.7,7.67787027]
[1730747425648,0.87612436,2436.0,2435.8,0.15069804]
[1730747425979,0.87612436,2436.0,2435.5,3.0]
[1730747426137,4.10532,2435.9,2435.6,0.15070656]
[1730747426338,4.10532,2435.9,2435.7,0.15070656]
[1730747426559,4.10532,2435.9,2435.6,3.0]
[1730747426560,0.1099625,2435.8,2435.6,3.0]
[1730747426737,0.1099625,2435.8,2435.7,0.15068791]
[1730747427574,4.10542,2435.8,2435.7,0.15068791]
[1730747427776,4.10576,2435.6,2435.5,0.15068791]
[1730747427984,0.791,2435.7,2435.2,0.1506675]
[1730747428279,0.10989255,2435.6,2435.3,4.2568275]
[1730747428480,0.10989255,2435.6,2435.4,0.15061391]
[1730747428780,0.10989255,2435.6,2435.2,4.1063]
[1730747429305,4.21574255,2435.6,2435.2,3.0]
[1730747429454,4.10594,2435.5,2435.3,0.1506134]
[1730747429658,4.10579,2435.6,2435.2,7.1064]
[1730747429859,0.10989255,2435.4,2435.2,7.1064]
[1730747430052,4.10579,2435.6,2435.2,7.1064]
[1730747430285,0.10989255,2435.3,2435.2,7.1064]
[1730747430455,4.10579,2435.6,2435.2,7.25699379]
[1730747430657,0.10989255,2435.3,2435.2,7.1064]
[1730747430865,8.21165,2435.6,2435.2,7.25699789]
[1730747431068,8.21165,2435.6,2435.2,7.1064]
[1730747431069,0.10989255,2435.3,2435.2,7.1064]
[1730747431385,0.10989255,2435.3,2435.2,7.25697734]
[1730747432050,4.10579,2435.6,2435.2,7.25697734]
[1730747432250,4.10579,2435.6,2435.2,7.1064]
[1730747432584,0.10989255,2435.5,2435.2,3.0]
[1730747432947,0.10989255,2435.5,2435.2,7.10639]
[1730747435558,0.10989255,2435.5,2435.2,11.21268]
[1730747435882,4.10577,2435.6,2435.2,3.0]
[1730747436082,4.10577,2435.6,2435.1,3.57231027]
[1730747436083,4.10634,2435.3,2435.1,3.57231027]
[1730747436254,4.88154,2435.3,2434.9,3.0]
[1730747436454,4.10646,2435.2,2434.9,3.0]
[1730747436689,4.21604316,2435.2,2434.9,3.0]
[1730747436890,8.32257316,2435.2,2434.9,3.0]
[1730747437095,8.32263316,2435.2,2434.9,3.0]
[1730747437307,4.10672,2435.1,2434.8,3.57231027]
[1730747437756,4.10646,2435.2,2434.8,3.57231027]
[1730747438100,0.10958316,2435.1,2434.8,3.57231027]
[1730747439085,0.10958316,2435.1,2434.8,3.0]
[1730747439293,0.10958316,2435.1,2434.8,7.1071]
[1730747439860,4.21626316,2435.1,2434.8,3.0]
[1730747440800,0.10958316,2435.1,2434.8,7.10707]
[1730747441008,4.88162,2435.3,2434.9,4.10685]
[1730747441328,0.10949165,2435.2,2434.9,4.10685]
[1730747441526,0.10949165,2435.2,2434.9,8.21371]
[1730747441683,4.88162,2435.3,2434.9,4.10685]
[1730747442195,0.10949165,2435.2,2434.9,4.10685]
[1730747442400,4.88162,2435.3,2434.9,4.10685]
[1730747442589,0.10949165,2435.2,2434.9,4.10685]
[1730747442789,4.88157,2435.3,2434.9,4.10685]
[1730747443099,0.10949165,2435.2,2434.8,10.67931027]
[1730747443422,4.10647,2435.2,2434.8,10.67931027]
[1730747443625,0.10949165,2435.1,2434.8,10.67931027]
[1730747444383,4.88157,2435.3,2434.9,4.10693]
[1730747444626,0.10949165,2435.2,2434.8,14.78630027]
[1730747444809,4.10646,2435.2,2434.8,10.67930027]
[1730747445131,0.10942168,2435.1,2434.9,4.10694]
[1730747445333,4.88149,2435.3,2434.8,6.57231027]
[1730747445638,0.10942168,2435.0,2434.8,14.78647027]
[1730747445793,4.88149,2435.3,2434.8,14.78647027]
[1730747445794,0.10942168,2435.2,2434.8,14.78647027]
[1730747445990,4.88149,2435.3,2434.8,14.78647027]
[1730747446215,0.10942168,2435.2,2434.8,14.78647027]
[1730747446438,4.88149,2435.3,2434.8,10.67939027]
[1730747446737,0.10942168,2435.1,2434.9,0.7815]
[1730747446901,0.105795,2435.2,2435.1,3.0]
[1730747447088,4.93531,2435.8,2435.4,4.10605]
[1730747447721,4.1056,2435.7,2435.3,4.10624]
[1730747448797,4.1056,2435.7,2435.3,4.1062]
[1730747449337,0.8298,2435.8,2435.3,4.1062]
[1730747449526,4.10562,2435.7,2435.3,4.10613]
[1730747450328,4.93526,2435.8,2435.4,4.10607]
[1730747450515,4.1056,2435.7,2435.3,8.21232]
[1730747450837,4.1056,2435.7,2433.3,3.54957414]
[1730747450838,0.8298,2435.6,2434.6,3.0]
[1730747451144,4.1062,2435.4,2434.9,4.1068]
[1730747451648,4.1062,2435.4,2435.0,4.1067]
[1730747451937,0.10588217,2435.3,2435.0,4.1067]
[1730747452136,0.10588217,2435.3,2434.8,3.57231027]
[1730747452356,0.10588217,2435.3,2434.9,8.21382]
[1730747452699,4.21216217,2435.3,2434.9,4.10691]
[1730747453115,4.21216217,2435.3,2434.9,8.21378]
[1730747453318,4.21216217,2435.3,2434.9,8.21372]
[1730747453529,0.10588217,2435.3,2435.0,4.10675]
[1730747453929,4.21216217,2435.3,2434.9,4.10692]
[1730747454135,4.21216217,2435.3,2435.0,4.10664]
[1730747454136,0.10588217,2435.3,2435.0,4.10664]
[1730747455302,0.10588217,2435.3,2434.9,8.2137]
[1730747455653,0.10588217,2435.3,2435.0,0.15102907]
[1730747455835,4.21215217,2435.3,2434.9,4.10685]
[1730747456036,0.10588217,2435.3,2435.0,0.15102386]
[1730747456251,0.10588217,2435.3,2434.9,8.21371]
[1730747456453,0.10588217,2435.3,2435.0,0.15106675]
[1730747456611,0.10588217,2435.3,2434.9,8.21371]
[1730747456808,0.10588217,2435.3,2435.0,0.15106415]
[1730747457054,0.10588217,2435.3,2434.9,4.10685]
[1730747457226,0.10588217,2435.3,2435.0,0.15112289]
[1730747457558,4.21215217,2435.3,2434.9,4.1069]
[1730747457847,4.21215217,2435.3,2435.0,0.15112837]
[1730747458052,4.21215217,2435.3,2435.1,0.15112837]
[1730747458210,4.21215217,2435.3,2434.8,3.57231027]
[1730747458413,4.92914,2435.2,2434.8,4.10707]
[1730747458613,4.10677,2435.0,2434.9,0.15114143]
[1730747458846,4.21265217,2435.0,2434.9,0.15114143]
[1730747459248,4.21265217,2435.0,2434.6,4.10738]
[1730747459465,0.10588217,2435.0,2434.7,4.2583889]
[1730747459614,0.10588217,2435.0,2434.8,0.1511189]
[1730747459953,0.10588217,2435.0,2434.9,0.1511189]
[1730747460158,0.10588217,2435.0,2434.9,5.0267589]
[1730747460312,4.92851,2435.6,2435.1,4.10645]
[1730747460508,4.106,2435.5,2435.1,4.10645]
[1730747460708,4.106,2435.5,2435.2,0.15110676]
[1730747461028,4.106,2435.5,2435.1,4.10645]
[1730747461225,4.92848,2435.6,2435.2,0.15109611]
[1730747461425,4.10617,2435.4,2435.0,4.10673]
[1730747461856,4.10593,2435.5,2435.1,4.25767042]
[1730747462146,0.8227,2435.6,2435.2,4.25738042]
[1730747462320,4.92847,2435.6,2435.2,4.10628]
[1730747462651,5.82094737,2436.0,2435.3,5.02142687]
[1730747462652,0.7545,2435.8,2435.3,5.02142687]
[1730747462855,0.7545,2435.8,2435.4,4.25710687]
[1730747463158,4.85993,2435.8,2435.4,4.10598]
[1730747463951,1.651005,2435.8,2435.1,3.57231027]
[1730747464158,4.86003,2435.8,2435.3,4.87029]
[1730747464373,4.86003,2435.8,2435.4,0.15111924]
[1730747464517,6.57543737,2436.0,2435.4,7.67837027]
[1730747464717,4.85967,2436.0,2435.4,3.57231027]
[1730747464917,4.10528,2435.9,2435.5,4.25696464]
[1730747465228,4.10528,2435.9,2435.6,0.15112464]
[1730747465414,4.10528,2435.9,2435.5,4.10584]
[1730747465759,4.10528,2435.9,2435.6,0.1510221]
[1730747466049,4.10542,2435.8,2435.4,4.10607]